[Event "*** Titled Tuesday Blitz"]
[Site "Chess.com"]
[Date "2019.08.06"]
[Round "9"]
[White "TregubovP"]
[Black "SergeiAza"]
[Result "1-0"]
[WhiteElo "2547"]
[BlackElo "2773"]
[TimeControl "180+2"]
[EndTime "15:08:25 PDT"]
[Termination "TregubovP won by resignation"]

1. d4 {[%clk 0:03:01.9]} 1... d5 {[%clk 0:03:00.5]} 2. c4 {[%clk 0:03:02.5]}
2... e6 {[%clk 0:03:01.8]} 3. Nc3 {[%clk 0:03:02.8]} 3... Be7 {[%clk 0:03:03]}
4. cxd5 {[%clk 0:03:00.9]} 4... exd5 {[%clk 0:03:03.7]} 5. Bf4 {[%clk
0:03:02.4]} 5... c6 {[%clk 0:03:05]} 6. e3 {[%clk 0:03:02.6]} 6... Bf5 {[%clk
0:03:05.9]} 7. Nge2 {[%clk 0:02:58]} 7... Nf6 {[%clk 0:02:53.7]} 8. Ng3 {[%clk
0:02:58.6]} 8... Bg6 {[%clk 0:02:47.4]} 9. h4 {[%clk 0:02:56.1]} 9... h5 {[%clk
0:02:46.1]} 10. Bd3 {[%clk 0:02:47.4]} 10... Bxd3 {[%clk 0:02:14.7]} 11. Qxd3
{[%clk 0:02:48.1]} 11... Nbd7 {[%clk 0:02:11.1]} 12. f3 {[%clk 0:02:25]} 12...
O-O {[%clk 0:02:04.6]} 13. O-O-O {[%clk 0:02:24.2]} 13... Re8 {[%clk 0:01:58.7]}
14. Kb1 {[%clk 0:02:24.5]} 14... g6 {[%clk 0:01:47.8]} 15. e4 {[%clk 0:02:23.6]}
15... dxe4 {[%clk 0:01:46.1]} 16. Ngxe4 {[%clk 0:02:16.4]} 16... Qa5 {[%clk
0:01:37.1]} 17. Bg5 {[%clk 0:01:42.5]} 17... Nxe4 {[%clk 0:01:19.6]} 18. Nxe4
{[%clk 0:01:39.9]} 18... Bf8 {[%clk 0:01:14.6]} 19. g4 {[%clk 0:01:37.8]} 19...
hxg4 {[%clk 0:01:15]} 20. fxg4 {[%clk 0:01:36]} 20... Qb5 {[%clk 0:01:00.3]} 21.
Qxb5 {[%clk 0:01:20.9]} 21... cxb5 {[%clk 0:01:00.8]} 22. Rhe1 {[%clk
0:01:19.1]} 22... Bg7 {[%clk 0:00:50.5]} 23. h5 {[%clk 0:01:14.6]} 23... gxh5
{[%clk 0:00:43]} 24. gxh5 {[%clk 0:01:14.5]} 24... Kh7 {[%clk 0:00:44.6]} 25. d5
{[%clk 0:00:59.3]} 25... Nb6 {[%clk 0:00:39]} 26. d6 {[%clk 0:00:52.3]} 26...
Nd7 {[%clk 0:00:28.3]} 27. Be7 {[%clk 0:00:50.2]} 27... Rac8 {[%clk 0:00:23.2]}
28. Rf1 {[%clk 0:00:26.1]} 28... Rc4 {[%clk 0:00:10.7]} 29. Ng5+ {[%clk
0:00:25.7]} 29... Kh6 {[%clk 0:00:11.6]} 30. Nxf7+ {[%clk 0:00:26.4]} 30... Kxh5
{[%clk 0:00:11.9]} 31. Rg1 {[%clk 0:00:22.3]} 31... Bf6 {[%clk 0:00:07]} 32.
Bxf6 {[%clk 0:00:22.3]} 32... Nxf6 {[%clk 0:00:08.2]} 33. Rg5+ {[%clk
0:00:23.1]} 1-0

[Event "*** Titled Tuesday Blitz"]
[Site "Chess.com"]
[Date "2019.08.06"]
[Round "9"]
[White "GadimbayliA"]
[Black "Durarbayli"]
[Result "0-1"]
[WhiteElo "2878"]
[BlackElo "2826"]
[TimeControl "180+2"]
[EndTime "15:08:27 PDT"]
[Termination "Durarbayli won by resignation"]

1. e4 {[%clk 0:03:01.9]} 1... e5 {[%clk 0:03:00.8]} 2. Nf3 {[%clk 0:03:02.6]}
2... Nc6 {[%clk 0:03:01.9]} 3. Bb5 {[%clk 0:03:04]} 3... a6 {[%clk 0:03:02.9]}
4. Ba4 {[%clk 0:03:05.4]} 4... Nf6 {[%clk 0:03:03.8]} 5. O-O {[%clk 0:03:06.8]}
5... b5 {[%clk 0:03:04.8]} 6. Bb3 {[%clk 0:03:07.7]} 6... Bc5 {[%clk 0:03:05.8]}
7. c3 {[%clk 0:03:08.9]} 7... d6 {[%clk 0:03:06.9]} 8. d4 {[%clk 0:03:10]} 8...
Bb6 {[%clk 0:03:07.8]} 9. Be3 {[%clk 0:03:11.3]} 9... Rb8 {[%clk 0:03:05.2]} 10.
Nbd2 {[%clk 0:03:12.3]} 10... O-O {[%clk 0:03:05.1]} 11. a3 {[%clk 0:02:57.5]}
11... h6 {[%clk 0:02:31.6]} 12. h3 {[%clk 0:02:34.8]} 12... a5 {[%clk
0:02:32.5]} 13. Re1 {[%clk 0:02:28.9]} 13... Re8 {[%clk 0:02:23.8]} 14. dxe5
{[%clk 0:01:59.8]} 14... dxe5 {[%clk 0:02:14.2]} 15. Bxb6 {[%clk 0:02:00.7]}
15... Rxb6 {[%clk 0:02:15.7]} 16. Nf1 {[%clk 0:02:01.7]} 16... b4 {[%clk
0:02:05.8]} 17. axb4 {[%clk 0:01:59.2]} 17... axb4 {[%clk 0:02:07.7]} 18. c4
{[%clk 0:00:59.4]} 18... Be6 {[%clk 0:01:35.8]} 19. Qxd8 {[%clk 0:00:28.7]}
19... Rxd8 {[%clk 0:01:35.6]} 20. c5 {[%clk 0:00:30.6]} 20... Rb5 {[%clk
0:01:30.2]} 21. Bxe6 {[%clk 0:00:27.9]} 21... fxe6 {[%clk 0:01:32.1]} 22. Rec1
{[%clk 0:00:29.5]} 22... Nxe4 {[%clk 0:01:27.2]} 23. Ra6 {[%clk 0:00:30.2]}
23... Nd4 {[%clk 0:01:24.2]} 24. Nxd4 {[%clk 0:00:31.4]} 24... exd4 {[%clk
0:01:23]} 25. Rxe6 {[%clk 0:00:32.8]} 25... Rxc5 {[%clk 0:01:09.7]} 26. Rxc5
{[%clk 0:00:19.5]} 26... Nxc5 {[%clk 0:01:11.6]} 27. Rc6 {[%clk 0:00:21.1]}
27... Nb3 {[%clk 0:01:12.2]} 28. Rxc7 {[%clk 0:00:19.6]} 28... d3 {[%clk
0:01:08.3]} 29. Rb7 {[%clk 0:00:20.9]} 29... Rd4 {[%clk 0:00:59.5]} 30. Ne3
{[%clk 0:00:19]} 30... d2 {[%clk 0:01:00.3]} 31. g3 {[%clk 0:00:17.3]} 31...
d1=Q+ {[%clk 0:00:46.9]} 32. Nxd1 {[%clk 0:00:18.1]} 32... Rxd1+ {[%clk
0:00:48.8]} 33. Kg2 {[%clk 0:00:19.6]} 33... Rd4 {[%clk 0:00:50]} 34. h4 {[%clk
0:00:19.8]} 34... Nc1 {[%clk 0:00:49.8]} 35. Rc7 {[%clk 0:00:19.4]} 35... Nd3
{[%clk 0:00:50.1]} 36. b3 {[%clk 0:00:20.4]} 36... Rd5 {[%clk 0:00:44.2]} 37.
Kf3 {[%clk 0:00:18.5]} 37... Rc5 {[%clk 0:00:41.6]} 38. Rb7 {[%clk 0:00:17.2]}
38... Rc3 {[%clk 0:00:42.6]} 39. Ke2 {[%clk 0:00:18.7]} 0-1

[Event "*** Titled Tuesday Blitz"]
[Site "Chess.com"]
[Date "2019.08.06"]
[Round "9"]
[White "wonderfultime"]
[Black "gemarin"]
[Result "1-0"]
[WhiteElo "2855"]
[BlackElo "2091"]
[TimeControl "180+2"]
[EndTime "15:08:44 PDT"]
[Termination "wonderfultime won on time"]

1. d4 {[%clk 0:03:01.9]} 1... d5 {[%clk 0:03:00.3]} 2. Nf3 {[%clk 0:02:55.8]}
2... c6 {[%clk 0:02:58.3]} 3. Bf4 {[%clk 0:02:57.1]} 3... Qb6 {[%clk 0:02:57.4]}
4. Qc1 {[%clk 0:02:58.1]} 4... Bf5 {[%clk 0:02:58.4]} 5. e3 {[%clk 0:02:58.1]}
5... e6 {[%clk 0:02:58.9]} 6. c4 {[%clk 0:02:59.5]} 6... Bxb1 {[%clk 0:02:44.3]}
7. Qxb1 {[%clk 0:03:01.4]} 7... Bb4+ {[%clk 0:02:42.4]} 8. Kd1 {[%clk
0:03:01.5]} 8... dxc4 {[%clk 0:02:37.8]} 9. Bxc4 {[%clk 0:03:01]} 9... Nf6
{[%clk 0:02:36.4]} 10. Ke2 {[%clk 0:02:56.6]} 10... Nbd7 {[%clk 0:02:32.2]} 11.
Qc2 {[%clk 0:02:49.1]} 11... O-O {[%clk 0:02:29.3]} 12. Rhd1 {[%clk 0:02:46.7]}
12... Rfe8 {[%clk 0:02:28.2]} 13. Kf1 {[%clk 0:02:42.1]} 13... Nd5 {[%clk
0:02:26.6]} 14. Bg3 {[%clk 0:02:42]} 14... Be7 {[%clk 0:02:24.4]} 15. Rac1
{[%clk 0:02:39.5]} 15... N7f6 {[%clk 0:02:19.4]} 16. a3 {[%clk 0:02:38]} 16...
Qd8 {[%clk 0:02:16.7]} 17. h3 {[%clk 0:02:35.3]} 17... Nb6 {[%clk 0:02:16.7]}
18. Ba2 {[%clk 0:02:34.9]} 18... Rc8 {[%clk 0:02:17.3]} 19. Kg1 {[%clk 0:02:33]}
19... Bd6 {[%clk 0:02:05.2]} 20. Bh4 {[%clk 0:02:33.8]} 20... Be7 {[%clk
0:01:58.5]} 21. e4 {[%clk 0:02:35]} 21... Nfd7 {[%clk 0:01:57.5]} 22. Bg3 {[%clk
0:02:31.7]} 22... Bf6 {[%clk 0:01:57.8]} 23. Bb1 {[%clk 0:02:23.3]} 23... Nf8
{[%clk 0:01:57]} 24. b4 {[%clk 0:02:22.5]} 24... Bg5 {[%clk 0:01:45.8]} 25. Nxg5
{[%clk 0:02:21.2]} 25... Qxg5 {[%clk 0:01:46.1]} 26. Qc5 {[%clk 0:02:22.7]}
26... Qd8 {[%clk 0:01:28.1]} 27. Rd3 {[%clk 0:02:00.5]} 27... Ng6 {[%clk
0:01:26.8]} 28. Qh5 {[%clk 0:01:52]} 28... Nd7 {[%clk 0:01:18]} 29. Rcd1 {[%clk
0:01:43.9]} 29... a5 {[%clk 0:01:15.4]} 30. Qxa5 {[%clk 0:01:31.7]} 30... Qxa5
{[%clk 0:01:15.3]} 31. bxa5 {[%clk 0:01:33.6]} 31... Ra8 {[%clk 0:01:16.5]} 32.
Rb3 {[%clk 0:01:34.9]} 32... Rxa5 {[%clk 0:01:08.2]} 33. Rxb7 {[%clk 0:01:35]}
33... Nf6 {[%clk 0:01:08.8]} 34. Rb3 {[%clk 0:01:30.1]} 34... Rea8 {[%clk
0:01:08.6]} 35. Bd6 {[%clk 0:01:29.9]} 35... Ra4 {[%clk 0:00:53.5]} 36. Rc3
{[%clk 0:01:26]} 36... Rc8 {[%clk 0:00:36]} 37. Bb4 {[%clk 0:01:22.6]} 37... Nf4
{[%clk 0:00:35.2]} 38. Kf1 {[%clk 0:01:21.4]} 38... Nd7 {[%clk 0:00:20.6]} 39.
Rdc1 {[%clk 0:01:20.8]} 39... Ra6 {[%clk 0:00:15.6]} 40. g3 {[%clk 0:01:22]}
40... Nxh3 {[%clk 0:00:13.3]} 41. Kg2 {[%clk 0:01:23.2]} 41... Ng5 {[%clk
0:00:12.4]} 42. f4 {[%clk 0:01:24.7]} 42... e5 {[%clk 0:00:09.3]} 43. fxg5
{[%clk 0:01:05.5]} 43... exd4 {[%clk 0:00:09.9]} 44. Rc4 {[%clk 0:01:07]} 44...
c5 {[%clk 0:00:09.4]} 45. Rxd4 {[%clk 0:01:03.7]} 1-0

[Event "*** Titled Tuesday Blitz"]
[Site "Chess.com"]
[Date "2019.08.06"]
[Round "9"]
[White "MarianPetrov"]
[Black "Lion_DL"]
[Result "0-1"]
[WhiteElo "2558"]
[BlackElo "2360"]
[TimeControl "180+2"]
[EndTime "15:08:46 PDT"]
[Termination "Lion_DL won on time"]

1. e4 {[%clk 0:03:01.6]} 1... Nc6 {[%clk 0:02:59.4]} 2. Nc3 {[%clk 0:03:00.4]}
2... d6 {[%clk 0:02:59.4]} 3. f4 {[%clk 0:02:59]} 3... g6 {[%clk 0:02:58.6]} 4.
Nf3 {[%clk 0:02:58.5]} 4... Bg7 {[%clk 0:02:59.1]} 5. d4 {[%clk 0:02:52.7]} 5...
Bg4 {[%clk 0:02:59.3]} 6. d5 {[%clk 0:02:52.7]} 6... Nd4 {[%clk 0:02:56.1]} 7.
Be3 {[%clk 0:02:52.4]} 7... Bxf3 {[%clk 0:02:49.9]} 8. gxf3 {[%clk 0:02:54.3]}
8... c5 {[%clk 0:02:50]} 9. Bg2 {[%clk 0:02:19.3]} 9... Qb6 {[%clk 0:02:29]} 10.
Rb1 {[%clk 0:02:14]} 10... Nb5 {[%clk 0:02:26.4]} 11. Ne2 {[%clk 0:01:45.1]}
11... Qa5+ {[%clk 0:02:21.4]} 12. c3 {[%clk 0:01:44.8]} 12... Qxa2 {[%clk
0:02:16.8]} 13. O-O {[%clk 0:01:44.7]} 13... e6 {[%clk 0:01:39]} 14. Ra1 {[%clk
0:01:43.8]} 14... Qc4 {[%clk 0:01:36.2]} 15. b3 {[%clk 0:01:38.7]} 15... Nxc3
{[%clk 0:01:33.6]} 16. bxc4 {[%clk 0:01:35.4]} 16... Nxd1 {[%clk 0:01:34]} 17.
Raxd1 {[%clk 0:01:35.9]} 17... exd5 {[%clk 0:01:34.2]} 18. Rxd5 {[%clk 0:01:34]}
18... O-O-O {[%clk 0:01:33.8]} 19. Rfd1 {[%clk 0:01:32.7]} 19... Ne7 {[%clk
0:01:22.7]} 20. Rxd6 {[%clk 0:01:32.9]} 20... Rxd6 {[%clk 0:01:24.3]} 21. Rxd6
{[%clk 0:01:34.1]} 21... b6 {[%clk 0:01:26.2]} 22. Bh3+ {[%clk 0:01:33.5]} 22...
f5 {[%clk 0:01:26]} 23. Ng3 {[%clk 0:01:23.9]} 23... Rf8 {[%clk 0:01:21.5]} 24.
e5 {[%clk 0:01:08.7]} 24... Kc7 {[%clk 0:01:20.3]} 25. Ne2 {[%clk 0:01:07]}
25... g5 {[%clk 0:01:15.9]} 26. Nc3 {[%clk 0:00:55.3]} 26... gxf4 {[%clk
0:01:14.3]} 27. Bxf4 {[%clk 0:00:43]} 27... Ng6 {[%clk 0:01:15]} 28. Nd5+ {[%clk
0:00:39.6]} 28... Kb8 {[%clk 0:01:16.3]} 29. Rxg6 {[%clk 0:00:09.3]} 29... hxg6
{[%clk 0:01:14.6]} 30. e6+ {[%clk 0:00:10.6]} 30... Kc8 {[%clk 0:01:02.9]} 31.
Ne7+ {[%clk 0:00:09.4]} 31... Kd8 {[%clk 0:00:55.7]} 32. Nxg6 {[%clk 0:00:11.3]}
32... Rg8 {[%clk 0:00:57.1]} 33. Bxf5 {[%clk 0:00:03.7]} 33... Bf6 {[%clk
0:00:55.8]} 34. Kf2 {[%clk 0:00:04.7]} 34... a5 {[%clk 0:00:56.1]} 35. h4 {[%clk
0:00:02.8]} 35... a4 {[%clk 0:00:57.4]} 36. Bc1 {[%clk 0:00:02.8]} 36... Kc7
{[%clk 0:00:49.9]} 37. h5 {[%clk 0:00:02.8]} 37... Ra8 {[%clk 0:00:48.7]} 0-1

[Event "*** Titled Tuesday Blitz"]
[Site "Chess.com"]
[Date "2019.08.06"]
[Round "9"]
[White "vpsetter"]
[Black "iLuusions"]
[Result "1-0"]
[WhiteElo "2650"]
[BlackElo "2553"]
[TimeControl "180+2"]
[EndTime "15:08:49 PDT"]
[Termination "vpsetter won by resignation"]

1. e4 {[%clk 0:02:59.2]} 1... c5 {[%clk 0:02:59.6]} 2. Nf3 {[%clk 0:02:59.4]}
2... e6 {[%clk 0:03:00.8]} 3. d4 {[%clk 0:03:00.5]} 3... cxd4 {[%clk 0:03:02.7]}
4. Nxd4 {[%clk 0:03:02.2]} 4... a6 {[%clk 0:03:04.2]} 5. Be2 {[%clk 0:03:01.9]}
5... Nf6 {[%clk 0:02:57.3]} 6. Nc3 {[%clk 0:03:00.8]} 6... Bb4 {[%clk
0:02:53.6]} 7. O-O {[%clk 0:03:01.2]} 7... Bxc3 {[%clk 0:02:44.7]} 8. bxc3
{[%clk 0:03:01.4]} 8... Nxe4 {[%clk 0:02:46.2]} 9. Bf3 {[%clk 0:02:56.1]} 9...
Nc5 {[%clk 0:02:40.1]} 10. Ba3 {[%clk 0:02:51.4]} 10... Qc7 {[%clk 0:02:37.7]}
11. Nb3 {[%clk 0:02:50.2]} 11... d6 {[%clk 0:02:27.5]} 12. Qd4 {[%clk
0:02:46.9]} 12... e5 {[%clk 0:02:00.6]} 13. Qe3 {[%clk 0:02:47.6]} 13... Nbd7
{[%clk 0:01:57.5]} 14. Rad1 {[%clk 0:02:46]} 14... O-O {[%clk 0:01:51.7]} 15.
Rd2 {[%clk 0:02:46.5]} 15... f5 {[%clk 0:01:13.1]} 16. Rfd1 {[%clk 0:02:40]}
16... e4 {[%clk 0:01:13.9]} 17. Be2 {[%clk 0:02:35]} 17... Rf6 {[%clk
0:01:14.7]} 18. Qf4 {[%clk 0:02:18.2]} 18... Ne5 {[%clk 0:00:52.7]} 19. Nxc5
{[%clk 0:02:11.5]} 19... dxc5 {[%clk 0:00:53]} 20. Rd8+ {[%clk 0:02:12.1]} 20...
Kf7 {[%clk 0:00:54.2]} 21. Bh5+ {[%clk 0:01:05.7]} 21... g6 {[%clk 0:00:52.2]}
22. Qh6 {[%clk 0:01:06]} 22... Ke7 {[%clk 0:00:36.7]} 23. Qg7+ {[%clk
0:00:52.2]} 23... Rf7 {[%clk 0:00:26]} 24. Qh8 {[%clk 0:00:51.9]} 24... Bd7
{[%clk 0:00:12.6]} 25. Rxa8 {[%clk 0:00:43.4]} 25... gxh5 {[%clk 0:00:14]} 26.
Rg8 {[%clk 0:00:31.1]} 26... Ng4 {[%clk 0:00:07]} 27. g3 {[%clk 0:00:24.6]}
27... b6 {[%clk 0:00:04.3]} 28. Rg7 {[%clk 0:00:21.8]} 28... Be6 {[%clk
0:00:05.6]} 29. Rxf7+ {[%clk 0:00:22.2]} 29... Bxf7 {[%clk 0:00:06.6]} 30. Qxh7
{[%clk 0:00:22.6]} 30... Qe5 {[%clk 0:00:07.8]} 31. Bc1 {[%clk 0:00:19.1]} 31...
Nf6 {[%clk 0:00:04.9]} 32. Bg5 {[%clk 0:00:19]} 32... Ke6 {[%clk 0:00:04.9]} 33.
Qh6 {[%clk 0:00:19.3]} 33... e3 {[%clk 0:00:02.4]} 34. Bxf6 {[%clk 0:00:14.6]}
1-0

[Event "*** Titled Tuesday Blitz"]
[Site "Chess.com"]
[Date "2019.08.06"]
[Round "9"]
[White "Aknok"]
[Black "Quiet_Desperation"]
[Result "1-0"]
[WhiteElo "2459"]
[BlackElo "2483"]
[TimeControl "180+2"]
[EndTime "15:08:49 PDT"]
[Termination "Aknok won on time"]

1. d4 {[%clk 0:03:01.9]} 1... Nf6 {[%clk 0:02:59.1]} 2. c4 {[%clk 0:03:02.9]}
2... e6 {[%clk 0:03:00.1]} 3. Nf3 {[%clk 0:03:04]} 3... Bb4+ {[%clk 0:02:57.3]}
4. Bd2 {[%clk 0:03:05.1]} 4... Qe7 {[%clk 0:02:58.4]} 5. g3 {[%clk 0:03:05.3]}
5... Nc6 {[%clk 0:02:58.8]} 6. Nc3 {[%clk 0:03:05.8]} 6... Bxc3 {[%clk
0:02:59.6]} 7. Bxc3 {[%clk 0:03:07.7]} 7... Ne4 {[%clk 0:03:01]} 8. Rc1 {[%clk
0:03:08.6]} 8... Nxc3 {[%clk 0:03:02.3]} 9. Rxc3 {[%clk 0:03:10.5]} 9... O-O
{[%clk 0:03:03.6]} 10. d5 {[%clk 0:03:11.6]} 10... Nb8 {[%clk 0:03:04.7]} 11.
Bg2 {[%clk 0:03:09.4]} 11... e5 {[%clk 0:03:04.1]} 12. c5 {[%clk 0:03:10.4]}
12... d6 {[%clk 0:03:04.9]} 13. b4 {[%clk 0:02:59.9]} 13... a5 {[%clk
0:03:03.1]} 14. a3 {[%clk 0:02:55.8]} 14... axb4 {[%clk 0:03:03.8]} 15. axb4
{[%clk 0:02:57.7]} 15... Na6 {[%clk 0:03:04.8]} 16. O-O {[%clk 0:02:36.4]} 16...
Nxb4 {[%clk 0:02:53.1]} 17. cxd6 {[%clk 0:02:29.7]} 17... cxd6 {[%clk
0:02:53.6]} 18. Qb3 {[%clk 0:02:22.9]} 18... Na6 {[%clk 0:02:52]} 19. Nd2 {[%clk
0:02:14.5]} 19... Nc5 {[%clk 0:02:51.3]} 20. Qc2 {[%clk 0:02:10.1]} 20... b6
{[%clk 0:02:43.5]} 21. Rb1 {[%clk 0:02:08.8]} 21... Ba6 {[%clk 0:01:58.5]} 22.
Rxb6 {[%clk 0:01:01.2]} 22... Bxe2 {[%clk 0:01:52.4]} 23. Ne4 {[%clk 0:00:55.2]}
23... Ra1+ {[%clk 0:01:44.5]} 24. Rb1 {[%clk 0:00:55.7]} 24... Rxb1+ {[%clk
0:01:30.2]} 25. Qxb1 {[%clk 0:00:57.6]} 25... Nxe4 {[%clk 0:01:20.6]} 26. Bxe4
{[%clk 0:00:59.5]} 26... g6 {[%clk 0:01:06.1]} 27. Qb6 {[%clk 0:00:56.7]} 27...
Ra8 {[%clk 0:00:50.1]} 28. h4 {[%clk 0:00:51.7]} 28... Ra1+ {[%clk 0:00:41.5]}
29. Kh2 {[%clk 0:00:52.6]} 29... Qf6 {[%clk 0:00:33.1]} 30. Bg2 {[%clk
0:00:43.7]} 30... Bf1 {[%clk 0:00:29.6]} 31. Qb2 {[%clk 0:00:34.7]} 31... Bxg2
{[%clk 0:00:24.8]} 32. Qxa1 {[%clk 0:00:20.5]} 32... Bxd5 {[%clk 0:00:25.9]} 33.
Qe1 {[%clk 0:00:14.4]} 33... h5 {[%clk 0:00:22]} 34. Qe3 {[%clk 0:00:14.7]}
34... Kg7 {[%clk 0:00:22.5]} 35. Rc1 {[%clk 0:00:14.4]} 35... Qf5 {[%clk
0:00:19.5]} 36. Rd1 {[%clk 0:00:14.4]} 36... e4 {[%clk 0:00:12]} 37. Qd4+ {[%clk
0:00:14.6]} 1-0

[Event "*** Titled Tuesday Blitz"]
[Site "Chess.com"]
[Date "2019.08.06"]
[Round "9"]
[White "Supernotar"]
[Black "Shahinyan_ChessMood"]
[Result "0-1"]
[WhiteElo "2627"]
[BlackElo "2764"]
[TimeControl "180+2"]
[EndTime "15:08:52 PDT"]
[Termination "Shahinyan_ChessMood won by checkmate"]

1. d4 {[%clk 0:03:01.9]} 1... Nf6 {[%clk 0:02:59.5]} 2. c4 {[%clk 0:03:03.1]}
2... c5 {[%clk 0:03:00.2]} 3. Nf3 {[%clk 0:03:03.6]} 3... cxd4 {[%clk
0:03:00.7]} 4. Nxd4 {[%clk 0:03:04.8]} 4... Nc6 {[%clk 0:03:02.6]} 5. Nc3 {[%clk
0:03:04.8]} 5... g6 {[%clk 0:03:04.1]} 6. g3 {[%clk 0:03:05.7]} 6... Bg7 {[%clk
0:03:03.6]} 7. Bg2 {[%clk 0:03:07]} 7... O-O {[%clk 0:03:05.1]} 8. O-O {[%clk
0:03:07.9]} 8... Qa5 {[%clk 0:03:05.8]} 9. Nb3 {[%clk 0:02:58.7]} 9... Qh5
{[%clk 0:03:06.9]} 10. c5 {[%clk 0:02:59.6]} 10... a5 {[%clk 0:03:07.1]} 11. Na4
{[%clk 0:02:57.4]} 11... d6 {[%clk 0:03:03.2]} 12. Nb6 {[%clk 0:02:44.8]} 12...
Rb8 {[%clk 0:02:59.5]} 13. Nxc8 {[%clk 0:02:44.8]} 13... Rbxc8 {[%clk
0:03:01.4]} 14. cxd6 {[%clk 0:02:45.3]} 14... Rfd8 {[%clk 0:03:02.8]} 15. h4
{[%clk 0:02:08.9]} 15... Rxd6 {[%clk 0:02:50.9]} 16. Qc2 {[%clk 0:02:07]} 16...
a4 {[%clk 0:02:43.3]} 17. Nd2 {[%clk 0:02:00.3]} 17... Qxe2 {[%clk 0:02:41.2]}
18. Bf3 {[%clk 0:01:56.5]} 18... Qa6 {[%clk 0:02:36.1]} 19. Ne4 {[%clk
0:01:38.6]} 19... Nxe4 {[%clk 0:02:32.3]} 20. Bxe4 {[%clk 0:01:39]} 20... b5
{[%clk 0:02:29.6]} 21. Bf4 {[%clk 0:01:25.5]} 21... Nd4 {[%clk 0:02:14.9]} 22.
Qd3 {[%clk 0:01:24.6]} 22... e5 {[%clk 0:02:10]} 23. Bc1 {[%clk 0:01:14]} 23...
f5 {[%clk 0:02:09.4]} 24. Bg2 {[%clk 0:01:06.6]} 24... e4 {[%clk 0:02:08.8]} 25.
Qb1 {[%clk 0:01:03]} 25... a3 {[%clk 0:01:39.9]} 26. bxa3 {[%clk 0:00:56.5]}
26... Ne2+ {[%clk 0:01:19.6]} 27. Kh2 {[%clk 0:00:57.1]} 27... Bxa1 {[%clk
0:01:21.3]} 28. Qxa1 {[%clk 0:00:54.9]} 28... Nxc1 {[%clk 0:01:23.2]} 29. Rxc1
{[%clk 0:00:55.9]} 29... Rxc1 {[%clk 0:01:25]} 30. Qxc1 {[%clk 0:00:57.5]} 30...
Qc6 {[%clk 0:01:26.7]} 31. Qb2 {[%clk 0:00:56.4]} 31... Rd5 {[%clk 0:01:20.6]}
32. Bf1 {[%clk 0:00:53.8]} 32... Qd6 {[%clk 0:01:16.3]} 33. Bxb5 {[%clk
0:00:49.1]} 33... Qe5 {[%clk 0:00:57.7]} 34. Qb3 {[%clk 0:00:24.4]} 34... Kg7
{[%clk 0:00:58.1]} 35. Bc4 {[%clk 0:00:22.9]} 35... Rd2 {[%clk 0:00:55.8]} 36.
Qb7+ {[%clk 0:00:22.2]} 36... Kh6 {[%clk 0:00:53.1]} 37. Kg1 {[%clk 0:00:08.6]}
37... Qa1+ {[%clk 0:00:49.3]} 38. Kg2 {[%clk 0:00:09.1]} 38... Qd4 {[%clk
0:00:50.7]} 39. Kh3 {[%clk 0:00:06.2]} 39... Qxf2 {[%clk 0:00:41.8]} 40. Bg8
{[%clk 0:00:07.3]} 40... Qf1# {[%clk 0:00:39.6]} 0-1

[Event "*** Titled Tuesday Blitz"]
[Site "Chess.com"]
[Date "2019.08.06"]
[Round "9"]
[White "ChessFunMaker"]
[Black "GremioPrudente"]
[Result "0-1"]
[WhiteElo "2228"]
[BlackElo "2241"]
[TimeControl "180+2"]
[EndTime "15:08:53 PDT"]
[Termination "GremioPrudente won by resignation"]

1. e4 {[%clk 0:02:49.7]} 1... e6 {[%clk 0:02:59.9]} 2. d4 {[%clk 0:02:45.7]}
2... d5 {[%clk 0:03:00.9]} 3. Nc3 {[%clk 0:02:47.3]} 3... Nf6 {[%clk 0:03:01.9]}
4. e5 {[%clk 0:02:48]} 4... Nfd7 {[%clk 0:03:02.5]} 5. f4 {[%clk 0:02:45.9]}
5... c5 {[%clk 0:03:04]} 6. Nf3 {[%clk 0:02:47]} 6... Nc6 {[%clk 0:03:01.2]} 7.
Be3 {[%clk 0:02:48.3]} 7... cxd4 {[%clk 0:03:02.7]} 8. Nxd4 {[%clk 0:02:48.9]}
8... Bc5 {[%clk 0:03:04.1]} 9. Qd2 {[%clk 0:02:46.8]} 9... O-O {[%clk
0:03:05.1]} 10. Be2 {[%clk 0:02:34]} 10... a6 {[%clk 0:02:52.5]} 11. O-O-O
{[%clk 0:02:16.5]} 11... Nxd4 {[%clk 0:02:32.5]} 12. Bxd4 {[%clk 0:02:17.1]}
12... b5 {[%clk 0:02:33.8]} 13. a3 {[%clk 0:02:07.7]} 13... Rb8 {[%clk
0:02:28.7]} 14. f5 {[%clk 0:01:54.9]} 14... Bxd4 {[%clk 0:02:18]} 15. Qxd4
{[%clk 0:01:54.7]} 15... Qg5+ {[%clk 0:02:19.5]} 16. Kb1 {[%clk 0:01:20.2]}
16... Qxf5 {[%clk 0:02:20.5]} 17. Rhe1 {[%clk 0:01:01.9]} 17... Qxe5 {[%clk
0:02:20.7]} 18. Qxe5 {[%clk 0:01:01.8]} 18... Nxe5 {[%clk 0:02:19.8]} 19. Bxb5
{[%clk 0:01:03.4]} 19... axb5 {[%clk 0:02:06.7]} 20. Rxe5 {[%clk 0:01:04.7]}
20... b4 {[%clk 0:02:08.3]} 21. axb4 {[%clk 0:01:02.1]} 21... Rxb4 {[%clk
0:02:09.2]} 22. b3 {[%clk 0:00:55.6]} 22... Bd7 {[%clk 0:02:04.5]} 23. Kb2
{[%clk 0:00:46.1]} 23... Rfb8 {[%clk 0:01:59.7]} 24. Ra1 {[%clk 0:00:41.4]}
24... f6 {[%clk 0:01:51.7]} 25. Ree1 {[%clk 0:00:38.5]} 25... d4 {[%clk
0:01:51.1]} 26. Ne4 {[%clk 0:00:30]} 26... e5 {[%clk 0:01:52.4]} 27. Nc5 {[%clk
0:00:25.2]} 27... Bc8 {[%clk 0:01:53.4]} 28. Ra7 {[%clk 0:00:23.3]} 28... Bf5
{[%clk 0:01:40.7]} 29. Rea1 {[%clk 0:00:16.3]} 29... R4b5 {[%clk 0:01:26.4]} 30.
Rc7 {[%clk 0:00:03]} 30... Rc8 {[%clk 0:01:19.2]} 31. Raa7 {[%clk 0:00:04.5]}
31... Rxc5 {[%clk 0:01:12.3]} 32. Rxg7+ {[%clk 0:00:05.7]} 32... Kh8 {[%clk
0:01:08]} 33. g4 {[%clk 0:00:04.7]} 33... Bg6 {[%clk 0:01:06.3]} 34. Ka3 {[%clk
0:00:03.6]} 34... Rxc2 {[%clk 0:01:00.1]} 35. h4 {[%clk 0:00:04.8]} 35... Rc1
{[%clk 0:01:00.2]} 36. h5 {[%clk 0:00:06]} 36... Ra1+ {[%clk 0:01:01.3]} 37. Kb4
{[%clk 0:00:07.5]} 37... Rxa7 {[%clk 0:01:02.2]} 38. Rxa7 {[%clk 0:00:09.4]}
38... Bc2 {[%clk 0:00:50.6]} 39. Rf7 {[%clk 0:00:05.6]} 39... d3 {[%clk
0:00:50.7]} 40. Rxf6 {[%clk 0:00:06.8]} 40... d2 {[%clk 0:00:51.8]} 41. Rd6
{[%clk 0:00:05.2]} 41... d1=Q {[%clk 0:00:52.7]} 42. Rxd1 {[%clk 0:00:06.7]}
42... Bxd1 {[%clk 0:00:53.7]} 43. g5 {[%clk 0:00:08.6]} 43... Bxh5 {[%clk
0:00:53.6]} 0-1